bitfinex-derivatives/quotes_SOLF0:USTF0_20251228
["timestamp","ask_amount","ask_price","bid_price","bid_amount"]
[1766953407110,0.87,123.64,123.61,0.06160319]
[1766953410009,0.87,123.64,123.61,0.00160319]
[1766953411015,0.92987702,123.64,123.61,0.00160319]
[1766953411315,0.05987702,123.64,123.61,0.00160319]
[1766953413711,0.86987702,123.64,123.61,0.00160319]
[1766953434122,2.37895321,123.64,123.61,0.00160319]
[1766953434530,0.81,123.61,123.54,3.26]
[1766953434724,2.31907619,123.59,123.54,3.26]
[1766953435528,0.06223038,123.58,123.55,0.05922544]
[1766953435925,0.81,123.57,123.52,3.26]
[1766953436126,0.81,123.57,123.52,10.5511]
[1766953436330,0.06223038,123.58,123.53,4.76907619]
[1766953436530,0.75,123.59,123.53,4.76907619]
[1766953437031,0.06009835,123.57,123.55,0.06147434]
[1766953438434,1.56917454,123.57,123.55,0.06147434]
[1766953439538,0.06009835,123.57,123.55,0.06147434]
[1766953447138,1.56917454,123.57,123.55,0.06147434]
[1766953451143,0.06009835,123.57,123.55,0.06147434]
[1766953463253,0.06009835,123.57,123.53,3.26]
[1766953464155,0.06009835,123.57,123.54,0.06231019]
[1766953507592,0.81009835,123.57,123.54,0.06231019]
[1766953507788,0.81009835,123.57,123.52,3.24]
[1766953508190,0.75,123.56,123.5,3.24]
[1766953508793,0.06228587,123.54,123.52,0.0528464]
[1766953510299,0.06228587,123.54,123.5,3.24]
[1766953511402,0.06228587,123.54,123.51,0.05776913]
[1766953527803,2.42287288,123.54,123.44,17.40519066]
[1766953528007,2.42287288,123.54,123.46,3.24]
[1766953528008,0.75,123.53,123.46,3.24]
[1766953528411,0.75,123.52,123.46,3.24]
[1766953529014,0.05455875,123.5,123.48,0.05393624]
[1766953562840,0.8,123.56,123.5,3.22]
[1766953563037,2.31224207,123.54,123.48,3.22]
[1766953563846,0.05819206,123.52,123.5,0.05232128]
[1766953575676,0.8,123.56,123.51,4.89224207]
[1766953576657,0.05709087,123.55,123.51,12.18404207]
[1766953577663,0.05709087,123.55,123.52,4.89224207]
[1766953580961,1.56933294,123.55,123.51,7.2918]
[1766953581860,1.56933294,123.55,123.51,10.6718]
[1766953582167,2.42933294,123.55,123.51,10.6718]
[1766953586469,0.91709087,123.55,123.51,10.6718]
[1766953587170,0.05709087,123.55,123.51,10.6718]
[1766953587966,1.3523679,123.59,123.54,3.38]
[1766953588158,1.51224207,123.58,123.54,3.38]
[1766953588365,1.51224207,123.57,123.5,1.51224207]
[1766953589061,0.05282918,123.55,123.52,0.05345902]
[1766953589259,0.05282918,123.55,123.52,7.34445902]
[1766953589568,0.00282918,123.55,123.53,1.51224207]
[1766953590161,0.00282918,123.55,123.52,1.56570109]
[1766953590365,0.00282918,123.55,123.53,3.38]
[1766953590566,0.00282918,123.55,123.53,10.6705]
[1766953590762,0.00282918,123.55,123.54,3.38]
[1766953609493,0.00282918,123.55,123.54,4.89224207]
[1766953613603,0.0023679,123.59,123.55,3.3]
[1766953613804,12.24834207,123.61,123.55,3.3]
[1766953614709,0.05455934,123.59,123.57,0.06076667]
[1766953618205,0.00455934,123.59,123.57,3.36076667]
[1766953618506,5.81402234,123.59,123.53,3.3]
[1766953619405,5.81402234,123.59,123.55,0.06218255]
[1766953619605,0.05881843,123.58,123.55,0.06218255]
[1766953620610,3.38881843,123.58,123.55,0.06218255]
[1766953620812,5.689463,123.57,123.52,3.44]
[1766953621800,5.689463,123.57,123.53,0.05687383]
[1766953622007,3.33,123.57,123.53,3.49687383]
[1766953623809,0.05881843,123.58,123.54,3.44]
[1766953624711,0.05881843,123.58,123.54,10.73]
[1766953625711,3.33,123.62,123.56,3.44]
[1766953626604,0.05987052,123.6,123.58,0.05691562]
[1766953626809,5.93459441,123.63,123.58,3.49691562]
[1766953627007,2.359463,123.64,123.58,3.49691562]
[1766953627514,8.29451526,123.64,123.58,3.49691562]
[1766953627709,0.05945131,123.62,123.59,3.44]
[1766953631008,3.38945131,123.62,123.58,0.05691562]
[1766953632918,2.359463,123.61,123.58,0.05691562]
[1766953637225,5.689463,123.61,123.58,0.05691562]
[1766953640725,3.33,123.6,123.55,3.54]
[1766953641624,0.05582432,123.59,123.56,0.05233519]
[1766953661547,3.38582432,123.59,123.56,0.05233519]
[1766953670461,5.74528732,123.59,123.54,3.54]
[1766953671458,5.74528732,123.59,123.55,0.0550177]
[1766953676868,3.38582432,123.59,123.55,0.0550177]
[1766953678469,4.89629678,123.59,123.55,0.0550177]
[1766953682569,3.5,123.58,123.55,0.0550177]
[1766953792169,3.42,123.56,123.51,3.33]
[1766953793171,0.05194198,123.55,123.52,0.05667914]
[1766953797379,3.47194198,123.55,123.52,0.05667914]
[1766953805287,3.47194198,123.55,123.49,4.84099656]
[1766953805590,3.47194198,123.55,123.49,1.51099656]
[1766953805784,3.47194198,123.55,123.51,1.51099656]
[1766953805785,3.42,123.54,123.51,1.51099656]
[1766953806091,3.47194198,123.55,123.51,1.51099656]
[1766953806284,3.47194198,123.55,123.52,0.05545989]
[1766953822408,0.05194198,123.55,123.52,0.05545989]
[1766953822609,3.47,123.57,123.52,4.92645645]
[1766953822802,3.47,123.57,123.52,3.41545989]
[1766953822997,3.47,123.57,123.52,0.05545989]
[1766953823712,0.05666794,123.56,123.52,0.05545989]
[1766953824607,3.52666794,123.56,123.52,0.05545989]
[1766953847341,3.52666794,123.56,123.52,7.34665989]
[1766953849534,3.52666794,123.56,123.52,0.05545989]
[1766953849735,4.90099656,123.54,123.48,1.51099656]
[1766953849936,3.39,123.53,123.47,4.99099656]
[1766953850127,3.39,123.53,123.48,7.2932]
[1766953850733,0.05774903,123.52,123.49,0.05156179]
[1766953854344,0.05774903,123.52,123.49,1.56255835]
[1766953857243,0.05774903,123.52,123.49,0.05156179]
[1766953859346,0.05774903,123.52,123.49,1.56255835]
[1766953860445,0.05774903,123.52,123.49,0.05156179]
[1766953862146,0.05774903,123.52,123.49,2.413299]
[1766953862348,3.41,123.55,123.5,3.48]
[1766953863357,3.46612912,123.54,123.51,0.05965287]
[1766953895378,3.46612912,123.54,123.5,7.2925]
[1766953896382,3.46612912,123.54,123.51,0.05155094]
[1766953926200,3.33,123.59,123.53,1.51139064]
[1766953926400,3.33,123.59,123.54,4.97139064]
[1766953926801,3.33,123.59,123.55,1.51139064]
[1766953927101,1.3372455,123.61,123.57,1.51139064]
[1766953928298,0.05808173,123.6,123.58,0.06012166]
[1766953929107,0.07808173,123.6,123.58,0.00012166]
[1766953929808,0.07808173,123.6,123.55,7.2893]
[1766953930209,0.07808173,123.6,123.55,12.26069064]
[1766953930810,0.07808173,123.6,123.56,0.05907287]
[1766953937416,0.07808173,123.6,123.56,7.34787287]
[1766953943933,0.07808173,123.6,123.56,10.68787287]
[1766953946224,1.51139064,123.62,123.58,3.34]
[1766953946430,0.02,123.63,123.58,3.34]
[1766953947329,0.05462565,123.62,123.59,1.56273065]
[1766953947929,0.05462565,123.62,123.59,12.18973065]
[1766953948121,0.02,123.64,123.59,12.18973065]
[1766953948628,0.02,123.64,123.59,10.67834001]
[1766953949130,0.05566706,123.63,123.59,10.67834001]
[1766953949332,0.05566706,123.63,123.59,3.39134001]
[1766953950828,0.05566706,123.63,123.59,4.90273065]
[1766953952029,0.05566706,123.63,123.59,3.39134001]
[1766953952229,0.05566706,123.63,123.59,10.67844001]
[1766953952426,0.05566706,123.63,123.6,3.34]
[1766953953226,10.22298434,123.66,123.6,3.34]
[1766953954126,1.51139064,123.65,123.6,3.34]
[1766953954333,0.05720621,123.64,123.62,0.05781132]
[1766953957727,0.05720621,123.64,123.6,3.34]
[1766953958734,0.05720621,123.64,123.61,0.06245514]
[1766953961134,0.05720621,123.64,123.61,3.40245514]
[1766953961432,1.51139064,123.66,123.61,3.40245514]
[1766953961637,1.59139064,123.66,123.61,3.40245514]
[1766953962341,0.05759737,123.65,123.61,3.40245514]
[1766953962637,1.56898801,123.65,123.61,3.40245514]
[1766953969641,0.05759737,123.65,123.61,3.40245514]
[1766953976035,1.51139064,123.68,123.62,3.28]
[1766953976231,10.33094306,123.69,123.63,3.28]
[1766953976942,0.0360464,123.67,123.65,0.0608739]
[1766953983044,10.33094306,123.69,123.65,0.0608739]
[1766953983045,1.40785242,123.69,123.65,3.3408739]
[1766953983245,1.35492696,123.7,123.65,3.3408739]
[1766953983440,1.64139064,123.71,123.65,3.3408739]
[1766953984238,0.13,123.71,123.65,3.3408739]
[1766953984641,0.13,123.71,123.65,10.6241739]
[1766953985145,3.37037668,123.72,123.65,0.0608739]
[1766953985343,0.13,123.71,123.66,3.28]
[1766953985537,0.13,123.71,123.67,0.05483973]
[1766953986745,2.355634,123.68,123.62,3.28]
[1766953986945,2.485634,123.68,123.62,3.28]
[1766953987948,0.05483973,123.66,123.64,0.05650275]
[1766954001456,0.13,123.68,123.64,0.05650275]
[1766954012664,0.13,123.67,123.61,3.52]
[1766954013060,0.08,123.66,123.61,3.52]
[1766954013663,0.05650275,123.65,123.62,0.06061668]
[1766954030080,0.12650275,123.65,123.59,13.53345994]
[1766954030281,0.12650275,123.65,123.59,3.46]
[1766954031196,0.12650275,123.65,123.61,0.05849919]
[1766954031688,7.41050275,123.65,123.61,0.05849919]
[1766954038401,7.2844,123.64,123.57,13.50345994]
[1766954038601,7.2844,123.64,123.57,3.43]
[1766954039302,7.2844,123.64,123.57,10.7183]
[1766954039503,0.05720716,123.62,123.59,0.05499458]
[1766954045107,0.05720716,123.62,123.59,0.00499458]
[1766954048108,0.05720716,123.62,123.56,3.43]
[1766954048309,0.05720716,123.62,123.56,4.93952615]
[1766954049213,0.05720716,123.62,123.58,0.05967889]
[1766954049715,7.34270716,123.62,123.58,0.05967889]
[1766954050305,8.85223331,123.62,123.58,0.05967889]
[1766954051011,8.79562615,123.61,123.54,3.43]
[1766954051416,8.79562615,123.61,123.54,4.93952615]
[1766954052114,0.05444696,123.59,123.56,0.05755535]
[1766954062309,0.05444696,123.59,123.56,4.7770815]
[1766954064922,0.05444696,123.59,123.57,1.50952615]
[1766954066312,1.50952615,123.64,123.58,4.71952615]
[1766954066313,7.2847,123.64,123.58,4.71952615]
[1766954066518,7.2847,123.64,123.59,1.50952615]
[1766954067522,0.05119633,123.63,123.6,0.06157803]
[1766954082352,0.05119633,123.63,123.6,3.27157803]
[1766954084648,8.84562248,123.63,123.58,3.21]
[1766954085053,1.50952615,123.62,123.58,3.21]
[1766954085851,1.50952615,123.62,123.59,0.05232464]
[1766954087457,8.84562248,123.63,123.59,0.05232464]
[1766954088960,8.84562248,123.63,123.59,3.27232464]
[1766954088961,7.33609633,123.63,123.59,3.27232464]
[1766954093464,0.05119633,123.63,123.59,3.27232464]
[1766954100781,0.00119633,123.63,123.59,3.27232464]
[1766954106171,1.51072248,123.63,123.59,3.27232464]
[1766954106474,0.00119633,123.63,123.59,3.27232464]
[1766954110468,2.35865848,123.62,123.59,3.27232464]
[1766954111181,0.00119633,123.63,123.59,3.27232464]
[1766954111679,7.28609633,123.63,123.59,3.27232464]
[1766954114385,2.35865848,123.62,123.59,3.27232464]
[1766954131298,7.28609633,123.63,123.59,3.27232464]
[1766954154017,0.00119633,123.63,123.59,3.27232464]
[1766954167929,0.06119633,123.63,123.59,3.39232464]
[1766954168531,1.570701,123.63,123.59,3.39232464]
[1766954169426,0.06119633,123.63,123.59,3.39232464]
[1766954170227,0.00119633,123.63,123.59,3.39232464]
[1766954175738,1.510701,123.63,123.59,3.39232464]
[1766954180746,1.50950467,123.62,123.59,3.39232464]
[1766954181545,1.50950467,123.61,123.59,3.39232464]
[1766954183746,1.50950467,123.62,123.59,3.39232464]
[1766954188050,1.50950467,123.61,123.59,3.39232464]
[1766954189448,1.57119633,123.63,123.59,3.39232464]
[1766954189643,1.50950467,123.61,123.59,3.39232464]
[1766954200056,1.57119633,123.63,123.59,0.05232464]
[1766954200255,1.50950467,123.6,123.59,0.05232464]
[1766954200450,1.50950467,123.61,123.59,0.05232464]
[1766954211077,1.57119633,123.63,123.59,0.05232464]
[1766954211267,1.50950467,123.62,123.59,0.05232464]
[1766954217978,1.50950467,123.62,123.59,3.26232464]
[1766954218776,1.50950467,123.62,123.59,0.05232464]
[1766954223381,3.07950467,123.62,123.59,0.05232464]
[1766954224986,1.510701,123.63,123.59,0.05232464]
[1766954225484,3.080701,123.63,123.59,0.05232464]
[1766954229089,1.50950467,123.62,123.59,0.05232464]
[1766954230487,3.92997723,123.63,123.59,0.05232464]
[1766954257318,1.57,123.62,123.59,0.05232464]
[1766954267232,2.90521143,123.66,123.59,3.44232464]
[1766954267733,2.90521143,123.66,123.61,10.6758]
[1766954267935,2.90521143,123.66,123.62,3.39]
[1766954268333,0.06089669,123.65,123.63,0.05770634]
[1766954269922,1.63089669,123.65,123.6,3.39]
[1766954270936,1.63089669,123.65,123.61,0.05705249]
[1766954284338,1.63089669,123.65,123.58,10.5573]
[1766954284534,1.46,123.63,123.58,10.5573]
[1766954285346,0.06056118,123.62,123.59,0.05599343]
[1766954293452,0.06056118,123.62,123.59,7.34309343]
[1766954302457,4.3044372,123.66,123.6,10.8262]
[1766954302659,2.79521143,123.66,123.6,12.33542577]
[1766954303150,2.79521143,123.66,123.61,7.286]
[1766954303543,0.05927267,123.65,123.62,0.05293346]
[1766954309669,1.57927267,123.65,123.62,0.05293346]
[1766954309965,1.50922577,123.62,123.58,3.54]
[1766954310356,1.50922577,123.62,123.58,10.8277]
[1766954310764,0.06147851,123.61,123.59,0.05383534]
[1766954324470,0.06147851,123.61,123.59,1.56306111]
[1766954326470,0.06147851,123.61,123.59,0.05383534]
[1766954361619,0.06147851,123.61,123.59,3.50383534]
[1766954361620,0.00147851,123.61,123.59,3.50383534]
[1766954361821,1.52,123.65,123.59,3.50383534]
[1766954362319,1.52,123.65,123.6,3.45]
[1766954362915,0.05367421,123.64,123.6,3.45]
[1766954363122,0.05367421,123.64,123.61,3.45]
[1766954374726,1.58,123.67,123.62,3.45]
[1766954375728,0.05742208,123.66,123.63,0.05273484]
[1766954376131,0.05742208,123.66,123.63,3.50273484]
[1766954378229,1.63,123.69,123.63,3.50273484]
[1766954379427,0.05193057,123.67,123.63,3.50273484]
[1766954379628,0.05193057,123.67,123.63,10.78753484]
[1766954379830,0.05193057,123.67,123.64,3.45]
[1766954380829,1.69,123.71,123.65,3.45]
[1766954381029,1.69,123.71,123.61,3.45]
[1766954381030,1.74,123.69,123.61,3.45]
[1766954381920,0.00209157,123.66,123.64,3.50452803]
[1766954384723,0.00209157,123.66,123.64,0.05452803]
[1766954396140,0.00209157,123.66,123.64,3.30452803]
[1766954452876,10.57852112,123.71,123.65,3.29]
[1766954453078,4.77780206,123.72,123.67,3.29]
[1766954453288,3.37037668,123.72,123.67,3.29]
[1766954453493,3.37037668,123.72,123.68,3.29]
[1766954453990,0.05912568,123.71,123.69,0.05851492]
[1766954458893,1.50832112,123.7,123.63,11.55771913]
[1766954459491,1.50832112,123.7,123.63,1.50832112]
[1766954459794,1.50832112,123.7,123.65,0.0618595]
[1766954460294,4.13832112,123.7,123.65,0.0618595]
[1766954460692,4.13832112,123.7,123.65,3.2718595]
[1766954460900,0.06061109,123.69,123.65,3.2718595]
[1766954461689,1.56893221,123.69,123.65,3.2718595]
[1766954462101,0.06061109,123.69,123.65,3.2718595]
[1766954462295,1.56893221,123.69,123.65,3.2718595]
[1766954462692,1.50832112,123.67,123.65,0.0618595]
[1766954465397,2.63,123.68,123.65,0.0618595]
[1766954465602,2.63,123.68,123.63,3.21]
[1766954466505,2.63,123.68,123.64,0.05145248]
[1766954467802,4.13832112,123.68,123.64,0.05145248]
[1766954468504,2.63,123.68,123.64,0.05145248]
[1766954482712,2.58,123.67,123.64,0.00145248]
[1766954484909,2.58,123.65,123.64,0.00145248]
[1766954485104,2.58,123.65,123.59,3.19]
[1766954486013,0.05662761,123.63,123.61,0.06016225]
[1766954500616,2.58,123.65,123.61,3.50016225]
[1766954500822,4.99681697,123.67,123.61,3.50016225]
[1766954501324,2.64,123.67,123.61,3.50016225]
[1766954501824,0.05134427,123.65,123.61,3.50016225]
[1766954524448,5.04816124,123.65,123.61,0.06016225]
[1766954524640,2.64,123.64,123.61,0.06016225]
[1766954530558,0.05134427,123.65,123.61,0.06016225]
[1766954530858,2.69134427,123.65,123.61,0.06016225]
[1766954532459,1.50929709,123.64,123.61,0.06016225]
[1766954541468,4.20064136,123.65,123.61,0.06016225]
[1766954553884,2.69134427,123.65,123.61,0.06016225]
[1766954555685,4.20064136,123.65,123.61,0.06016225]
[1766954560586,2.69134427,123.65,123.61,0.06016225]
[1766954560787,4.20064136,123.65,123.61,0.06016225]
[1766954570588,2.64,123.67,123.62,4.98929709]
[1766954570796,2.64,123.67,123.63,4.98929709]
[1766954570995,2.64,123.67,123.63,3.48]
[1766954571797,0.05824404,123.66,123.64,0.05227668]
[1766954572697,2.64,123.67,123.64,0.05227668]
[1766954572698,1.56928846,123.67,123.64,0.05227668]
[1766954583905,3.02929709,123.66,123.64,0.00227668]
[1766954584902,3.08640643,123.66,123.64,0.00227668]
[1766954588202,1.57710934,123.66,123.64,0.00227668]
[1766954588405,0.05710934,123.66,123.64,0.00227668]
[1766954635246,0.05710934,123.66,123.64,3.33227668]
[1766954635446,3.3626488,123.69,123.64,3.33227668]
[1766954636552,3.3626488,123.69,123.64,10.61637668]
[1766954638958,3.3626488,123.69,123.64,3.33227668]
[1766954640048,3.3626488,123.69,123.66,7.283]
[1766954647365,1.8426488,123.69,123.66,10.613]
[1766954649965,1.8426488,123.69,123.66,3.33]
[1766954663890,3.37037668,123.72,123.67,3.31]
[1766954664086,3.37037668,123.72,123.68,0.05699258]
[1766954664289,4.89037668,123.72,123.68,0.05699258]
[1766954665999,6.3980653,123.72,123.68,0.05699258]
[1766954669802,4.89037668,123.72,123.68,0.05699258]
[1766954669990,6.3980653,123.72,123.68,0.05699258]
[1766954670193,1.52,123.71,123.68,0.05699258]
[1766954702833,1.46,123.69,123.65,10.04939801]
[1766954703225,1.46,123.69,123.64,13.53939801]
[1766954703431,2.96768862,123.68,123.64,10.04939801]
[1766954703635,1.46,123.66,123.62,10.04939801]
[1766954703940,0.05291371,123.65,123.63,0.0512093]
[1766954713846,1.51291371,123.65,123.6,1.50768862]
[1766954714238,1.51291371,123.65,123.6,4.99768862]
[1766954714945,1.51291371,123.65,123.61,0.05545352]
[1766954718142,1.51291371,123.65,123.61,7.34125352]
[1766954718350,0.05291371,123.65,123.61,10.84125352]
[1766954719749,0.05291371,123.65,123.62,2.35740565]
[1766954729765,7.2805,123.71,123.63,10.7846]
[1766954730745,0.05209245,123.68,123.66,0.00421155]
[1766954731659,0.35209245,123.68,123.66,0.00421155]
[1766954767697,0.35209245,123.68,123.63,10.7846]
[1766954768601,0.35209245,123.68,123.64,0.05859731]
[1766954779616,0.05209245,123.68,123.65,1.50808524]
[1766954781719,0.05209245,123.68,123.64,10.84269731]
[1766954781919,0.05209245,123.68,123.65,1.50808524]
[1766954789229,0.05209245,123.68,123.64,12.35078255]
[1766954791420,0.35209245,123.68,123.62,13.54939801]
[1766954791620,0.24,123.67,123.62,3.5]
[1766954792526,0.24,123.67,123.63,0.054189]
[1766954796027,1.74808524,123.67,123.63,0.054189]
[1766954796229,0.24,123.65,123.6,3.5]
[1766954796424,1.74808524,123.65,123.6,3.5]
[1766954796937,0.24,123.64,123.58,13.54939801]
[1766954797124,1.74808524,123.64,123.58,3.5]
[1766954797324,1.74808524,123.64,123.6,0.06078096]
[1766954797325,0.05926289,123.62,123.6,0.06078096]
[1766954850976,0.05926289,123.62,123.57,3.29]
[1766954851972,7.34476289,123.62,123.57,3.29]
[1766954852288,7.34476289,123.62,123.58,3.34393589]
[1766954858381,0.24,123.61,123.58,0.05393589]
[1766954858580,0.24,123.61,123.55,1.53502042]
[1766954858978,0.24,123.61,123.55,4.82502042]
[1766954859379,0.24,123.61,123.56,3.29]
[1766954859583,0.06153884,123.6,123.57,3.34592297]
[1766954883094,1.40816574,123.65,123.57,3.34592297]
[1766954883298,1.40816574,123.65,123.58,3.41]
[1766954883999,1.40816574,123.65,123.6,3.41]
[1766954884193,0.06126392,123.64,123.61,0.05898004]
[1766954884398,0.06126392,123.64,123.61,3.46898004]
[1766954884611,0.36,123.68,123.61,2.41752492]
[1766954884900,1.40785242,123.68,123.62,3.41]
[1766954885103,2.18167351,123.7,123.64,3.41]
[1766954885598,0.05940631,123.68,123.66,0.05145252]
[1766954887609,9.46277351,123.7,123.66,3.46145252]
[1766954887907,12.78277351,123.7,123.66,3.46145252]
[1766954888807,0.06210178,123.69,123.66,3.46145252]
[1766954891513,0.06210178,123.69,123.66,0.05145252]
[1766954891810,3.38210178,123.69,123.66,0.05145252]
[1766954893013,0.44854748,123.66,123.64,3.41]
[1766954893311,3.32,123.68,123.62,3.41]
[1766954894213,0.05246046,123.66,123.64,0.05547552]
[1766954931645,0.00246046,123.66,123.64,3.28547552]
[1766954946258,14.20743474,123.71,123.64,3.28547552]
[1766954946461,8.43540223,123.71,123.65,3.23]
[1766954946762,1.50826749,123.7,123.65,3.23]
[1766954947359,0.06245762,123.69,123.66,0.05880544]
[1766954955469,0.06245762,123.69,123.66,3.26880544]
[1766954971171,0.00245762,123.69,123.66,3.26880544]
[1766954981883,0.00188232,123.71,123.66,3.26880544]
[1766954982989,0.05201747,123.7,123.66,3.26880544]
[1766954983190,0.00201747,123.7,123.66,3.26880544]
[1766955009819,3.37037668,123.72,123.68,1.03]
[1766955010918,0.04500886,123.71,123.69,0.05184595]
[1766955012225,3.37037668,123.72,123.69,1.08184595]
[1766955014924,9.13620934,123.72,123.69,0.05184595]
[1766955018630,6.78037668,123.72,123.69,0.05184595]
[1766955025330,3.37037668,123.72,123.69,0.05184595]
[1766955034551,6.73037668,123.72,123.69,0.05184595]
[1766955036654,8.2375777,123.72,123.69,0.05184595]
[1766955039660,1.50720102,123.71,123.69,0.05184595]
[1766955040962,8.2375777,123.72,123.69,0.05184595]
[1766955043563,6.73037668,123.72,123.69,0.05184595]
[1766955043758,3.37037668,123.72,123.69,0.05184595]
[1766955045270,4.8775777,123.72,123.69,0.05184595]
[1766955046962,8.1575777,123.72,123.69,0.05184595]
[1766955047959,6.65037668,123.72,123.69,0.05184595]
[1766955048260,8.1575777,123.72,123.69,0.05184595]
[1766955056272,1.50720102,123.71,123.69,0.05184595]
[1766955059374,8.1575777,123.72,123.69,0.05184595]
[1766955063277,3.32,123.71,123.69,0.05184595]
[1766955069079,3.32,123.71,123.69,0.00184595]
[1766955070080,3.37,123.71,123.69,0.00184595]
[1766955117426,3.37037668,123.72,123.69,0.00184595]
[1766955119629,3.47,123.71,123.69,0.00184595]
[1766955120927,3.47,123.71,123.66,10.04939801]
[1766955121232,3.47,123.7,123.65,10.04939801]
[1766955121432,3.47,123.7,123.64,10.04939801]
[1766955121928,3.47,123.68,123.63,7.2845]
[1766955123023,0.06012827,123.67,123.64,0.0572632]
[1766955126131,3.18,123.71,123.65,3.49]
[1766955126832,3.18,123.71,123.65,10.7735]
[1766955127035,3.18,123.71,123.67,0.06084007]
[1766955132632,3.18,123.71,123.67,0.00084007]
[1766955133533,5.53517934,123.71,123.67,0.00084007]
[1766955133740,3.07954296,123.7,123.67,0.00084007]
[1766955177969,3.37037668,123.72,123.68,4.7477178]
[1766955191577,3.37037668,123.72,123.68,3.24]
[1766955209404,6.45037668,123.72,123.67,7.28314007]
[1766955209799,6.45037668,123.72,123.67,10.65314007]
[1766955212800,6.45037668,123.72,123.67,3.37084007]
[1766955214606,13.72997668,123.72,123.67,3.37084007]
[1766955218908,3.08,123.71,123.67,0.00084007]
[1766955231817,3.08,123.7,123.67,0.00084007]
[1766955235326,3.08,123.7,123.63,3.37]
[1766955236413,3.08,123.7,123.65,0.06144029]
[1766955243526,10.3608,123.7,123.65,0.06144029]
[1766955244224,3.08,123.69,123.65,0.06144029]
[1766955246827,3.07354081,123.68,123.65,0.00144029]
[1766955248632,3.02,123.67,123.65,0.00144029]
[1766955248832,3.02,123.67,123.61,13.11032172]
[1766955249733,0.05276443,123.65,123.63,0.06105476]
[1766955263940,0.05276443,123.65,123.63,0.00105476]
[1766955264150,3.07276443,123.65,123.6,3.48]
[1766955264649,2.96,123.64,123.58,3.48]
[1766955265143,0.05380669,123.62,123.6,0.06219795]
[1766955278658,3.01380669,123.62,123.56,3.48]
[1766955278857,3.01380669,123.62,123.57,4.98951649]
[1766955279054,2.96,123.62,123.57,4.98951649]
[1766955279750,0.06201565,123.61,123.58,0.06179658]
[1766955280647,2.96201565,123.61,123.58,0.06179658]
[1766955281744,2.84,123.6,123.53,10.7703]
[1766955281943,2.84,123.6,123.54,1.50951649]
[1766955282155,2.84,123.6,123.54,4.98951649]
[1766955282559,2.84,123.6,123.55,1.50951649]
[1766955282752,0.05565264,123.59,123.56,0.06028218]
[1766955284162,0.05565264,123.59,123.56,5.04979867]
[1766955284460,2.9,123.64,123.58,4.98951649]
[1766955284646,2.9,123.64,123.59,1.50951649]
[1766955285256,2.9,123.64,123.6,1.50951649]
[1766955285459,0.06103755,123.63,123.61,0.05309658]
[1766955291971,4.35951649,123.62,123.56,3.43]
[1766955293068,0.06179817,123.6,123.58,0.0612603]
[1766955302773,0.00179817,123.6,123.58,3.4912603]
[1766955303082,0.00179817,123.6,123.58,5.00077679]
[1766955307985,0.00179817,123.6,123.59,3.43]
[1766955308286,2.91,123.64,123.59,4.93951649]
[1766955309191,0.05257681,123.63,123.59,4.93951649]
[1766955312384,2.96257681,123.63,123.58,0.0612603]
[1766955312588,4.4720933,123.63,123.58,0.0612603]
[1766955313275,11.7569933,123.63,123.58,0.0612603]
[1766955313480,2.91,123.62,123.58,0.0612603]
[1766955314781,10.1955,123.62,123.58,0.0612603]
[1766955316488,11.70561649,123.61,123.55,3.4]
[1766955316880,8.79561649,123.61,123.55,3.4]
[1766955317085,11.70621649,123.6,123.55,3.4]
[1766955317479,11.70621649,123.6,123.56,0.05336978]
[1766955317693,0.05159005,123.59,123.56,0.05336978]
[1766955318281,10.24909005,123.59,123.56,0.05336978]
[1766955321292,2.96159005,123.59,123.56,0.05336978]
[1766955330900,2.96159005,123.59,123.53,10.6907]
[1766955332102,2.96159005,123.59,123.55,0.05824516]
[1766955341002,2.91,123.58,123.51,3.4]
[1766955341403,2.91,123.58,123.52,3.4]
[1766955342100,0.05147466,123.56,123.54,0.05543749]
[1766955360112,2.96147466,123.56,123.51,3.53]
[1766955361124,2.96147466,123.56,123.52,0.05438086]
[1766955384649,0.05147466,123.56,123.52,13.06570134]
[1766955388250,0.05147466,123.56,123.53,10.6506]
[1766955402259,0.05147466,123.56,123.53,3.36]
[1766955406162,0.00147466,123.56,123.52,3.32438086]
[1766955407648,0.00147466,123.56,123.52,10.61568086]
[1766955407864,0.00147466,123.56,123.53,3.27]
[1766955410563,0.00147466,123.56,123.54,10.56]
[1766955410764,0.00147466,123.56,123.55,3.27]
[1766955442794,1.62147466,123.56,123.49,11.53409702]